bitfinex-derivatives/quotes_ETHF0:USTF0_20250824
["timestamp","ask_amount","ask_price","bid_price","bid_amount"]
[1756073108480,0.56707682,4765.7,4764.9,21.65576]
[1756073108686,0.8676,4765.5,4764.9,0.41976]
[1756073108884,0.4362,4766.1,4765.4,3.2078]
[1756073109081,1.00363177,4766.0,4765.9,3.2078]
[1756073109282,0.4362,4766.0,4765.9,3.2078]
[1756073109481,0.4314,4765.9,4765.7,21.225]
[1756073109683,0.4362,4765.8,4765.6,0.4197]
[1756073109882,0.4362,4765.8,4765.7,24.4418]
[1756073110082,0.4362,4765.8,4764.7,1.04945]
[1756073110083,0.3371,4765.6,4765.2,3.2078]
[1756073110284,0.56760575,4765.5,4765.2,3.2078]
[1756073110591,0.4362,4765.2,4764.1,3.30435447]
[1756073110785,0.4362,4765.0,4764.2,21.26]
[1756073111085,0.4362,4765.0,4764.1,3.30435447]
[1756073111390,1.2047,4764.8,4764.1,24.55935447]
[1756073111691,1.2047,4764.8,4764.1,3.30435447]
[1756073112086,0.4362,4764.7,4764.1,3.30435447]
[1756073112780,0.56815357,4764.6,4764.1,0.09655447]
[1756073112984,0.3371,4764.4,4764.1,0.09655447]
[1756073113189,0.8676,4764.2,4764.1,0.09655447]
[1756073113385,3.2078,4764.9,4764.1,0.09655447]
[1756073113584,0.4362,4764.7,4764.1,21.33255447]
[1756073113785,0.4362,4764.7,4764.1,21.75238447]
[1756073113985,0.4362,4764.7,4764.1,21.33255447]
[1756073114385,0.4362,4764.7,4764.2,21.231]
[1756073114586,0.7685,4764.5,4764.2,21.225]
[1756073114785,3.2078,4764.9,4764.2,21.225]
[1756073114991,0.8676,4764.3,4764.2,21.225]
[1756073115187,1.2047,4764.3,4764.2,21.225]
[1756073115393,0.4362,4764.3,4764.2,21.225]
[1756073115592,3.6392,4764.9,4764.1,0.09655447]
[1756073115792,0.4362,4764.8,4764.1,0.09655447]
[1756073116393,1.2047,4764.2,4764.1,0.09655447]
[1756073116589,1.2047,4764.2,4761.9,1.05008]
[1756073116590,0.4362,4764.1,4761.9,1.05008]
[1756073116790,3.644,4763.4,4762.0,21.198]
[1756073116988,0.4362,4763.4,4761.8,30.224]
[1756073117184,0.4362,4763.4,4761.9,21.192]
[1756073117384,0.4314,4763.3,4762.4,0.41999]
[1756073117584,1.48250487,4765.7,4761.8,30.224]
[1756073117585,0.3371,4763.2,4762.0,21.188]
[1756073117895,0.8676,4763.4,4762.0,21.188]
[1756073118094,1.2047,4762.8,4762.0,21.188]
[1756073118290,0.4362,4763.6,4762.2,3.24434431]
[1756073118489,0.4362,4763.6,4762.8,0.41995]
[1756073118885,0.3371,4763.5,4762.2,3.24434431]
[1756073119089,0.3371,4763.5,4762.3,21.25]
[1756073119290,0.3371,4763.5,4762.5,0.41997]
[1756073119495,0.4362,4763.6,4762.3,21.25]
[1756073119496,0.4362,4763.6,4762.7,0.41995]
[1756073119694,0.4362,4763.6,4762.3,21.25]
[1756073119695,0.4362,4763.4,4762.3,21.234]
[1756073119992,0.4362,4763.4,4762.7,0.41996]
[1756073120294,3.2078,4763.7,4762.7,3.2078]
[1756073120495,0.8676,4764.1,4762.7,3.2078]
[1756073120690,0.4362,4764.1,4763.2,3.2078]
[1756073120994,0.8676,4764.1,4763.3,21.22]
[1756073121190,0.8676,4764.1,4763.4,0.41989]
[1756073121395,0.4362,4764.1,4763.5,0.41988]
[1756073121896,3.2078,4764.3,4763.5,0.41988]
[1756073122090,3.2078,4764.3,4763.3,21.6399]
[1756073122297,0.4362,4764.2,4763.4,21.215]
[1756073122891,0.4362,4764.2,4763.0,3.2078]
[1756073123091,0.4362,4764.0,4762.8,0.41995]
[1756073123294,0.4362,4764.0,4762.9,21.198]
[1756073123496,0.4362,4764.0,4762.9,21.61794]
[1756073123693,0.4362,4764.0,4763.0,0.41993]
[1756073123899,0.4362,4764.0,4763.1,21.218]
[1756073125200,0.4362,4764.5,4763.1,21.218]
[1756073125389,0.4362,4764.5,4763.4,0.4199]
[1756073125589,0.4362,4764.5,4763.7,0.41987]
[1756073125794,3.2078,4764.9,4763.7,0.41986]
[1756073125795,0.4362,4764.8,4763.7,0.41986]
[1756073126099,0.4314,4764.7,4763.5,0.41989]
[1756073126298,0.4314,4764.7,4763.7,3.2078]
[1756073126489,0.4362,4765.4,4765.2,0.41974]
[1756073126695,3.644,4765.8,4765.5,0.41971]
[1756073126892,0.4362,4766.5,4766.0,0.41967]
[1756073127094,3.644,4766.6,4766.0,0.41967]
[1756073127397,0.4362,4767.3,4766.1,6.73979403]
[1756073127602,0.4362,4767.9,4767.4,0.41954]
[1756073127804,0.4365,4767.9,4767.5,21.188]
[1756073127992,0.4365,4767.9,4767.5,24.3958]
[1756073128199,3.2078,4768.1,4767.5,21.188]
[1756073128398,0.4365,4767.7,4767.5,21.188]
[1756073128597,0.4365,4768.4,4767.6,0.41952]
[1756073128801,0.4365,4768.4,4767.7,0.41951]
[1756073129298,3.2078,4768.6,4768.2,0.41947]
[1756073129712,3.2078,4770.1,4768.4,1.04864]
[1756073129893,0.4365,4771.0,4769.7,3.62714]
[1756073130098,0.325,4770.9,4769.8,33.4338]
[1756073130399,0.8916,4770.8,4769.9,21.234]
[1756073130696,0.4365,4770.0,4768.8,21.24]
[1756073130897,0.8916,4769.7,4767.8,33.8533]
[1756073131106,3.2078,4769.4,4767.9,21.25]
[1756073131292,3.2078,4768.9,4768.0,21.252]
[1756073131498,0.4365,4768.7,4767.8,30.226]
[1756073131696,0.4365,4769.4,4768.0,2.73247306]
[1756073131999,0.8916,4770.1,4768.6,3.2078]
[1756073132204,0.7615,4770.0,4768.7,21.298]
[1756073132401,0.4365,4769.9,4769.3,0.41938]
[1756073132591,0.4365,4769.9,4769.1,3.2078]
[1756073133103,3.6443,4769.9,4769.2,21.3]
[1756073133498,3.6443,4770.5,4769.2,21.3]
[1756073134005,3.6443,4770.5,4769.3,21.279]
[1756073134207,0.4365,4770.4,4769.3,21.279]
[1756073134505,0.4551,4770.3,4769.4,21.274]
[1756073134700,0.4551,4770.3,4769.1,3.2078]
[1756073134901,0.4365,4770.2,4769.5,21.272]
[1756073135699,0.4365,4770.9,4769.8,0.41933]
[1756073135904,0.4365,4770.5,4769.9,21.248]
[1756073136106,3.2078,4770.6,4769.9,21.248]
[1756073136403,0.7801,4770.5,4769.1,3.2078]
[1756073136599,0.4365,4770.4,4769.2,21.251]
[1756073137002,0.4365,4770.4,4769.5,0.41936]
[1756073137397,0.4365,4770.4,4769.2,21.251]
[1756073137602,0.4365,4770.4,4769.9,0.41932]
[1756073137803,0.4551,4771.1,4769.9,0.41932]
[1756073138002,0.4365,4771.0,4770.0,0.41931]
[1756073138203,0.4365,4771.0,4770.1,21.24]
[1756073138404,0.4365,4771.0,4770.2,0.41929]
[1756073138911,0.4365,4771.0,4770.3,21.219]
[1756073139099,0.02026179,4770.7,4770.3,21.219]
[1756073139297,0.47536179,4770.7,4769.6,33.4188]
[1756073139503,0.02026179,4770.7,4770.1,0.41931]
[1756073140004,0.02026179,4770.7,4769.6,30.211]
[1756073140209,0.03520232,4770.2,4770.0,0.41931]
[1756073140404,0.03520232,4770.2,4770.0,3.62711]
[1756073141207,0.4365,4770.9,4770.0,3.62711]
[1756073141208,0.05014286,4770.1,4770.0,3.2078]
[1756073141410,0.05014286,4770.1,4770.0,3.62712]
[1756073141599,0.05014286,4770.1,4770.0,21.60832]
[1756073141999,0.05014286,4770.1,4769.6,30.211]
[1756073142204,0.06508339,4769.9,4769.7,0.41934]
[1756073142409,0.06508339,4769.9,4769.8,21.177]
[1756073143108,0.50158339,4769.9,4769.8,21.177]
[1756073143308,0.50158339,4769.9,4769.0,3.2078]
[1756073143309,0.4365,4769.8,4769.0,3.2078]
[1756073143509,0.4365,4769.8,4769.1,21.156]
[1756073144304,0.09535943,4769.5,4769.4,0.41937]
[1756073144505,0.4365,4769.4,4769.1,21.156]
[1756073144807,0.09535943,4769.5,4767.9,1.04876]
[1756073144808,0.4365,4769.1,4767.9,3.2078]
[1756073145005,1.2166,4768.7,4767.0,3.2078]
[1756073145209,0.8916,4768.6,4767.1,21.147]
[1756073145410,0.09535943,4767.9,4767.1,3.15602342]
[1756073145615,0.09535943,4767.9,4767.2,21.158]
[1756073146010,0.09535943,4767.9,4767.7,0.41951]
[1756073146309,0.09535943,4767.9,4767.8,2.70815536]
[1756073146613,0.01053345,4767.9,4767.8,3.03230593]
[1756073146809,0.01053345,4767.9,4767.8,7.03230593]
[1756073147011,0.01053345,4767.9,4767.8,4.41951]
[1756073147210,0.4365,4769.9,4769.7,0.41934]
[1756073147403,0.4365,4770.5,4769.3,30.198]
[1756073147606,3.6629,4770.7,4768.7,3.2078]
[1756073147607,1.2166,4770.2,4769.4,21.136]
[1756073147808,3.2078,4769.7,4768.8,30.2]
[1756073148105,1.2166,4769.5,4768.8,30.2]
[1756073148307,0.01513802,4769.2,4768.9,21.138]
[1756073148517,0.8916,4769.0,4768.9,21.138]
[1756073148817,0.8916,4768.8,4768.4,21.133]
[1756073149214,0.7801,4768.6,4768.4,21.133]
[1756073149416,1.23894654,4768.5,4768.4,21.133]
[1756073149810,0.4365,4768.4,4767.8,21.129]
[1756073150012,0.4365,4768.4,4767.8,21.5485]
[1756073150211,0.4365,4768.4,4767.8,21.129]
[1756073150413,0.02234654,4768.1,4768.0,0.41949]
[1756073150913,0.02234654,4768.1,4768.0,4.41949]
[1756073151718,0.4365,4767.9,4767.6,3.62733]
[1756073151909,0.4365,4767.8,4767.7,21.124]
[1756073152109,0.8916,4767.8,4767.6,3.2078]
[1756073152320,0.8916,4767.8,4767.3,30.2]
[1756073152321,0.8916,4767.6,4767.3,30.2]
[1756073152627,0.4365,4767.5,4767.4,21.123]
[1756073153126,0.02234654,4767.7,4767.4,21.123]
[1756073153327,0.45884654,4767.7,4767.4,21.54254]
[1756073153529,0.4365,4767.5,4767.4,21.123]
[1756073154527,0.45884654,4767.5,4767.4,21.123]
[1756073154727,0.4365,4767.4,4767.3,30.2]
[1756073154927,0.47409414,4767.4,4767.3,51.296]
[1756073155130,0.03759414,4767.4,4767.3,51.296]
[1756073155635,0.47409414,4767.4,4767.3,51.296]
[1756073155830,0.03759414,4767.4,4767.3,51.296]
[1756073156127,0.7801,4768.1,4767.3,51.296]
[1756073156324,0.48442023,4767.4,4767.3,51.296]
[1756073156526,0.04792023,4767.4,4767.3,51.296]
[1756073156829,0.04792023,4767.4,4767.3,58.07754382]
[1756073157023,0.4365,4768.5,4767.7,0.41951]
[1756073157225,0.4365,4768.5,4767.8,21.4915]
[1756073157427,0.325,4768.4,4767.6,3.2078]
[1756073157624,0.58868071,4768.3,4767.7,21.068]
[1756073157927,3.2078,4768.6,4767.8,21.066]
[1756073158124,1.1686,4768.3,4767.3,30.2]
[1756073158323,1.1686,4768.0,4767.4,21.067]
[1756073158522,0.58867729,4767.9,4767.4,21.067]
[1756073158727,0.58867729,4767.8,4767.4,21.067]
[1756073158918,0.8239,4767.5,4767.4,21.067]
[1756073159120,1.1686,4767.5,4767.4,21.067]
[1756073159521,0.3447,4768.0,4767.4,21.061]
[1756073159723,3.2078,4767.5,4766.6,3.2078]
[1756073159932,3.2078,4767.5,4765.9,30.205]
[1756073159933,0.3447,4766.9,4766.0,3.2078]
[1756073160124,0.4153,4766.7,4766.1,21.078]
[1756073160334,0.7533,4768.1,4767.1,0.41957]
[1756073160630,1.00372113,4768.0,4767.3,0.41955]
[1756073160829,0.20730657,4768.3,4767.4,21.098]
[1756073161033,0.4153,4768.2,4768.0,0.41949]
[1756073161223,0.4153,4768.2,4768.1,21.124]
[1756073161731,0.4153,4768.7,4768.1,21.124]
[1756073161934,1.1686,4768.5,4768.2,21.111]
[1756073162132,0.58822188,4768.4,4768.2,21.53047]
[1756073162337,3.2078,4769.7,4768.9,0.41941]
[1756073162635,1.00357315,4769.6,4769.0,21.111]
[1756073162930,0.8239,4769.2,4769.1,21.107]
[1756073163232,0.8239,4769.2,4767.7,30.205]
[1756073163233,1.1686,4769.1,4769.0,21.129]
[1756073163427,1.75687315,4769.1,4769.0,21.129]
[1756073163835,1.1686,4769.0,4768.1,0.41948]
[1756073164024,0.4086,4768.4,4767.7,30.205]
[1756073164231,0.7533,4768.2,4767.9,0.41949]
[1756073164434,0.4153,4768.1,4767.8,21.53951]
[1756073164633,0.02633574,4768.6,4767.8,0.41951]
[1756073164927,0.02880356,4768.2,4767.8,21.107]
[1756073165128,0.3447,4768.0,4767.8,21.107]
[1756073165334,1.41178697,4767.9,4767.8,21.107]
[1756073165529,1.41178697,4767.9,4767.8,21.117]
[1756073165834,0.7533,4767.7,4767.6,21.111]
[1756073166023,1.34118697,4767.7,4767.6,21.111]
[1756073166226,1.34118697,4767.7,4766.9,0.41959]
[1756073166531,0.4153,4767.5,4767.0,21.106]
[1756073166734,0.7533,4767.4,4766.7,0.4196]
[1756073167026,0.7533,4767.4,4766.9,0.41958]
[1756073167027,0.4153,4767.0,4766.9,0.41958]
[1756073167232,0.02880356,4767.1,4766.9,0.41958]
[1756073167430,0.02880356,4767.1,4766.8,21.092]
[1756073167934,0.02880356,4767.0,4766.9,0.41959]
[1756073168137,0.02880356,4767.0,4766.9,3.62739]
[1756073169331,0.02880356,4767.0,4766.9,7.62739]
[1756073169537,0.4153,4768.7,4768.0,0.41949]
[1756073169832,0.4153,4768.2,4767.2,3.2078]
[1756073170137,0.4153,4768.0,4767.3,21.073]
[1756073171030,0.58887781,4767.9,4767.3,21.073]
[1756073171230,0.8239,4767.7,4767.3,21.073]
[1756073171437,0.4153,4767.5,4767.4,21.083]
[1756073171631,0.4153,4767.5,4767.0,0.41958]
[1756073171837,0.4153,4767.9,4767.1,21.059]
[1756073172033,0.3447,4767.8,4766.7,3.2078]
[1756073172238,0.4153,4767.7,4766.8,21.4726]
[1756073172436,1.00439115,4767.7,4766.8,21.4726]
[1756073172636,0.4153,4767.7,4766.9,0.41958]
[1756073172832,0.4153,4767.7,4766.2,30.206]
[1756073172833,0.3447,4767.5,4766.2,33.4138]
[1756073173033,1.1686,4767.0,4766.2,3.2078]
[1756073173232,0.58905754,4766.9,4765.9,21.048]
[1756073173430,0.3447,4766.7,4765.9,21.048]
[1756073173734,1.1686,4765.9,4765.3,0.17684597]
[1756073173934,1.1686,4765.5,4764.8,51.255]
[1756073174134,0.7533,4765.5,4764.8,51.255]
[1756073174337,0.7533,4765.2,4764.8,51.255]
[1756073174541,1.1686,4765.1,4764.8,51.255]
[1756073174842,0.76,4764.8,4764.5,3.2078]
[1756073175145,0.8239,4764.6,4764.5,3.2078]
[1756073175339,3.2078,4765.6,4764.1,3.30435447]
[1756073175340,0.7533,4764.4,4764.1,3.30435447]
[1756073175641,1.1686,4764.2,4764.1,0.09655447]
[1756073175938,1.75623808,4764.2,4764.1,0.09655447]
[1756073176137,0.4086,4764.0,4763.0,3.2078]
[1756073176444,1.1686,4763.4,4762.6,21.046]
[1756073176635,0.4086,4763.3,4762.6,21.041]
[1756073176832,0.4153,4763.2,4762.4,3.2078]
[1756073177030,0.4153,4763.0,4762.4,24.2488]
[1756073177233,3.2078,4763.5,4762.5,0.44358]
[1756073177234,0.4153,4762.7,4762.5,0.44358]
[1756073177436,0.4153,4762.7,4762.6,21.0596]
[1756073177941,3.2078,4763.5,4762.3,21.0756]
[1756073178244,3.2078,4763.5,4763.0,0.0236]
[1756073178435,3.2078,4763.5,4762.4,21.05]
[1756073178436,0.8239,4763.1,4762.4,21.05]
[1756073178639,0.4153,4763.1,4762.9,0.41994]
[1756073178938,0.4153,4763.5,4763.4,0.4435]
[1756073179134,0.4153,4763.5,4763.4,0.0236]
[1756073179335,0.8239,4763.5,4763.4,0.0236]
[1756073179738,0.8239,4763.4,4763.3,21.0806]
[1756073179938,0.4153,4763.4,4763.3,21.0806]
[1756073180237,0.4086,4764.0,4763.5,0.41988]
[1756073180438,0.8239,4763.8,4763.3,21.4769]
[1756073180639,3.2078,4764.6,4763.3,21.057]
[1756073180834,0.76,4764.4,4763.1,0.41992]
[1756073181035,0.8239,4764.4,4763.4,0.0236]
[1756073181239,0.4153,4764.5,4764.1,0.41983]
[1756073181441,0.4153,4764.5,4764.3,0.41981]
[1756073181641,0.4086,4765.5,4764.5,0.0236]
[1756073181841,0.4153,4765.4,4764.6,21.043]
[1756073182143,0.4153,4765.3,4764.7,0.0236]
[1756073182442,0.4153,4765.1,4764.9,0.0236]
[1756073182644,0.8239,4765.1,4765.0,21.044]
[1756073183035,0.8239,4765.1,4764.2,0.0236]
[1756073183237,0.8239,4765.1,4764.3,21.038]
[1756073183436,0.4086,4765.1,4764.3,21.038]
[1756073183646,0.3447,4764.9,4764.2,0.0236]
[1756073183843,0.7533,4764.9,4764.3,21.031]
[1756073184050,1.1686,4764.4,4763.8,30.223]
[1756073184233,0.4153,4764.3,4763.8,51.254]
[1756073184434,0.7533,4764.4,4763.8,51.254]
[1756073184435,0.4086,4764.2,4763.9,0.0236]
[1756073184635,0.4153,4764.1,4764.0,0.0236]
[1756073184839,0.8391606,4764.1,4764.0,0.0236]
[1756073185748,0.8239,4764.0,4763.8,51.254]
[1756073186045,0.8239,4763.9,4763.7,21.021]
[1756073186242,0.8239,4763.9,4763.8,0.0236]
[1756073186446,0.3447,4763.9,4763.5,0.0236]
[1756073186645,0.3447,4763.9,4763.6,21.0166]
[1756073186839,0.8239,4763.7,4763.6,21.0166]
[1756073187139,0.8239,4763.7,4763.6,20.993]
[1756073187342,0.8239,4763.7,4763.0,0.0236]
[1756073187549,0.8239,4763.6,4762.9,20.982]
[1756073187744,0.4147,4763.6,4762.8,3.2078]
[1756073188046,1.1626,4763.2,4762.5,20.982]
[1756073188248,0.8388,4763.1,4762.5,20.982]
[1756073188445,0.3238,4763.0,4762.2,20.975]
[1756073188639,0.4147,4762.8,4762.3,20.975]
[1756073188842,0.02882514,4762.6,4762.3,20.975]
[1756073189040,0.02882514,4762.6,4760.9,3.2078]
[1756073189041,0.8388,4762.5,4760.9,3.2078]
[1756073189248,0.7479,4762.2,4760.9,3.65221]
[1756073189448,0.4241,4762.3,4760.9,3.2321]
[1756073189649,0.3238,4762.3,4760.9,3.2321]
[1756073189852,0.02882514,4761.6,4760.9,3.2078]
[1756073190045,1.1626,4761.5,4760.9,3.2078]
[1756073190242,0.4147,4761.4,4760.9,3.2078]
[1756073190447,0.4147,4761.4,4761.3,0.0243]
[1756073190641,0.02882514,4761.6,4761.4,0.42007]
[1756073190842,0.86762514,4761.6,4761.5,0.0243]
[1756073191049,0.44352514,4761.6,4761.5,0.0243]
[1756073191249,0.86762514,4761.6,4761.5,0.0243]
[1756073191550,0.44352514,4761.6,4761.5,0.0243]
[1756073192049,0.02882514,4761.6,4761.5,0.0243]
[1756073192242,0.44352514,4761.6,4761.5,0.0243]
[1756073192449,0.02882514,4761.6,4761.5,4.0243]
[1756073192745,0.4241,4762.7,4761.5,2.0243]
[1756073192950,0.4147,4762.6,4761.6,21.41606]
[1756073193147,0.3238,4762.4,4761.6,20.996]
[1756073193344,0.8388,4762.3,4761.6,20.996]
[1756073193548,0.8388,4762.3,4761.6,21.41605]
[1756073193745,0.4147,4762.3,4761.9,3.2078]
[1756073193947,0.4147,4762.2,4761.9,3.2078]
[1756073194139,0.4241,4762.1,4761.9,3.2078]
[1756073194346,0.4147,4762.0,4761.9,20.992]
[1756073194845,0.4147,4762.6,4762.0,0.42002]
[1756073195051,0.4147,4762.6,4761.9,20.992]
[1756073195253,0.7385,4762.4,4761.8,20.995]
[1756073195554,0.3238,4762.2,4761.8,20.995]
[1756073195851,0.4147,4762.2,4761.9,0.42003]
[1756073196042,0.4147,4762.1,4761.9,0.42003]
[1756073196242,0.4147,4762.6,4762.5,0.41998]
[1756073196443,3.2078,4763.4,4763.1,0.41992]
[1756073196646,0.4147,4763.2,4763.1,0.41992]
[1756073196848,0.4147,4763.2,4763.1,20.989]
[1756073197547,3.2078,4764.1,4763.1,20.989]
[1756073197548,0.4147,4764.2,4763.2,1.0498]
[1756073197748,0.4147,4764.9,4763.4,3.2078]
[1756073197950,0.4241,4764.6,4763.8,0.41986]
[1756073198252,0.4147,4764.5,4763.8,0.41986]
[1756073198454,0.4147,4764.5,4763.5,20.981]
[1756073198657,0.4147,4764.3,4763.6,20.975]
[1756073198853,0.4147,4764.3,4764.2,0.41983]
[1756073199056,0.8388,4765.0,4764.1,3.2078]
[1756073199256,0.4147,4764.8,4764.0,0.41985]
[1756073199445,0.4147,4764.8,4764.1,20.966]
[1756073199647,1.9757,4764.8,4764.5,0.4198]
[1756073199854,0.4147,4764.6,4764.5,0.4198]
[1756073200060,3.5316,4765.7,4764.7,0.41978]
[1756073200259,3.39412061,4765.6,4764.4,3.2078]
[1756073200557,0.4241,4765.3,4765.1,0.41975]
[1756073200856,3.2078,4766.2,4765.2,24.1668]
[1756073201055,0.4147,4766.1,4765.9,0.41967]
[1756073201256,2.3904,4766.1,4766.0,20.96]
[1756073201457,3.2078,4766.7,4766.0,20.96]
[1756073201660,0.4147,4766.5,4766.1,20.961]
[1756073201858,0.4147,4766.3,4766.1,20.961]
[1756073202059,0.4147,4766.1,4765.7,3.2078]
[1756073202259,1.1626,4766.5,4765.7,3.2078]
[1756073202661,1.1626,4766.5,4765.7,0.41969]
[1756073202857,2.3904,4766.4,4765.6,24.1678]
[1756073203057,0.4147,4766.3,4765.6,24.1678]
[1756073203252,0.7385,4766.2,4764.9,3.62756]
[1756073203463,1.1626,4766.0,4765.0,20.948]
[1756073203762,0.8388,4765.9,4765.0,21.36775]
[1756073203964,0.4147,4765.8,4765.0,20.948]
[1756073204268,1.48250487,4767.8,4764.9,3.2078]
[1756073204269,0.4241,4765.5,4764.9,3.2078]
[1756073204464,0.7479,4765.3,4764.8,20.948]
[1756073204758,3.2078,4765.7,4764.8,20.948]
[1756073204964,0.8388,4764.9,4764.8,20.948]
[1756073205264,1.1626,4764.9,4764.8,20.948]
[1756073205865,2.8145,4764.9,4764.8,20.948]
[1756073206164,0.4147,4764.9,4764.8,20.948]
[1756073206466,0.8388,4765.6,4765.1,0.41974]
[1756073206761,0.4147,4765.3,4765.1,0.41974]
[1756073207060,0.8388,4766.0,4764.9,3.2078]
[1756073207368,2.8145,4766.0,4764.9,3.2078]
[1756073207665,0.4147,4765.9,4765.6,0.4197]
[1756073207964,0.4147,4765.9,4765.7,21.32769]
[1756073208167,0.4147,4766.2,4765.8,21.32868]
[1756073208472,0.4147,4766.1,4765.8,20.909]
[1756073208663,0.4147,4766.0,4765.8,20.909]
[1756073208960,0.4147,4766.6,4766.5,0.41963]
[1756073209261,0.4241,4767.9,4767.1,0.41957]
[1756073209464,0.8388,4767.9,4767.3,0.41955]
[1756073209662,3.2078,4768.0,4767.5,0.41953]
[1756073209868,0.4147,4768.5,4767.6,3.2078]
[1756073210066,3.6319,4769.2,4768.1,3.62728]
[1756073210363,2.3904,4769.1,4768.2,20.892]
[1756073210664,1.9757,4769.1,4768.1,3.2078]
[1756073210967,0.7479,4768.3,4767.2,33.4378]
[1756073211262,0.3238,4767.9,4767.2,1.2321]
[1756073211470,0.4147,4767.7,4767.2,1.2321]
[1756073211664,0.8388,4768.0,4767.2,1.2321]
[1756073211865,0.4147,4767.9,4767.2,1.2321]
[1756073212562,0.7479,4768.0,4767.2,22.1231]
[1756073212563,0.3238,4768.0,4767.2,22.1231]
[1756073212763,0.8388,4767.9,4767.2,22.1231]
[1756073212969,0.4147,4767.9,4767.4,0.41955]
[1756073213170,0.4147,4767.9,4767.2,22.1231]
[1756073213359,0.8388,4768.5,4767.3,0.41956]
[1756073213563,0.4147,4768.5,4767.2,22.1231]
[1756073213762,0.4147,4768.5,4767.8,0.4195]
[1756073213965,0.4147,4768.5,4767.9,21.2955]
[1756073214469,0.4147,4768.5,4767.9,20.876]
[1756073214665,0.4241,4768.4,4767.9,20.876]
[1756073214864,0.4147,4768.1,4767.2,1.2321]
[1756073215063,0.4147,4768.1,4767.3,20.864]
[1756073215666,0.4147,4768.1,4767.2,1.2321]
[1756073215867,3.2078,4767.9,4767.3,20.856]
[1756073216067,0.3238,4767.8,4767.4,20.851]
[1756073216271,0.8388,4767.6,4767.4,20.851]
[1756073216463,0.8388,4767.5,4766.5,0.41962]
[1756073216665,1.1626,4767.5,4766.6,20.842]
[1756073217560,1.1626,4767.5,4766.6,21.26161]
[1756073217767,1.1626,4767.5,4766.6,20.842]
[1756073218068,1.1626,4767.5,4766.4,3.2078]
[1756073218069,3.2078,4767.4,4766.7,20.838]
[1756073218261,0.4188,4767.0,4766.7,20.838]
[1756073218461,3.2078,4767.4,4766.7,20.838]
[1756073218462,0.4253,4766.9,4766.7,20.838]
[1756073218663,3.6331,4767.4,4766.7,20.838]
[1756073218860,3.6331,4767.4,4766.7,0.4196]
[1756073219064,0.4253,4767.4,4766.8,20.82]
[1756073219559,0.4253,4767.4,4766.9,20.817]
[1756073219765,0.8441,4767.8,4766.9,20.817]
[1756073219961,0.8441,4767.8,4766.4,3.2078]
[1756073220265,0.8441,4767.8,4765.9,0.17608025]
[1756073220266,0.4188,4768.3,4766.9,3.2078]
[1756073220471,0.4253,4768.4,4767.5,3.2078]
[1756073220870,0.4253,4768.2,4767.6,20.8]
[1756073221061,0.3508,4768.1,4767.1,0.41957]
[1756073221264,0.4253,4768.0,4767.2,20.8]
[1756073221667,0.4253,4768.0,4767.2,21.21956]
[1756073221867,0.4253,4768.0,4767.2,20.8]
[1756073222065,0.4253,4768.0,4767.3,0.41955]
[1756073222266,3.6331,4768.5,4767.2,20.8]
[1756073222462,3.6331,4768.5,4767.1,3.2078]
[1756073222463,0.8441,4768.2,4767.1,3.2078]
[1756073222770,1.1949,4767.4,4766.7,20.78]
[1756073222966,0.4253,4767.3,4766.6,20.78]
[1756073223165,0.4253,4767.3,4766.7,0.4196]
[1756073223573,0.8441,4767.9,4767.0,0.41957]
[1756073223771,3.2078,4767.6,4766.6,20.78]
[1756073223969,0.4253,4767.5,4766.6,20.78]
[1756073224172,0.4253,4767.5,4766.8,0.4196]
[1756073224365,0.4253,4768.3,4767.4,3.2078]
[1756073224566,3.2078,4768.6,4767.4,3.2078]
[1756073224764,3.2078,4768.6,4767.9,0.4195]
[1756073224968,0.4188,4768.5,4767.7,20.779]
[1756073225174,0.4253,4768.2,4767.7,20.779]
[1756073225369,0.4188,4768.5,4767.7,20.779]
[1756073225775,0.7696,4768.3,4766.9,0.41959]
[1756073225976,0.4253,4768.0,4767.0,0.41958]
[1756073226177,0.4253,4768.0,4767.1,20.77]
[1756073226376,0.4253,4767.8,4767.1,20.77]
[1756073226764,0.4253,4767.8,4766.5,3.2078]
[1756073226974,1.1949,4767.4,4766.0,0.41966]
[1756073227276,0.4253,4767.2,4766.1,20.756]
[1756073227477,0.4253,4767.0,4765.9,3.2078]
[1756073227667,0.4188,4766.9,4766.0,20.778]
[1756073227867,0.4253,4766.8,4766.1,20.776]
[1756073228270,0.4253,4766.8,4765.9,3.62747]
[1756073228479,0.4253,4766.8,4766.0,20.767]
[1756073229368,0.4253,4768.1,4766.7,1.04902]
[1756073229566,0.4253,4768.1,4767.4,0.41954]
[1756073229765,0.4253,4768.1,4767.2,3.2078]
[1756073229766,3.2078,4768.4,4767.2,3.2078]
[1756073229970,3.2078,4769.1,4768.8,0.41942]
[1756073230171,3.2078,4769.1,4769.0,0.41941]
[1756073230365,3.2078,4769.8,4769.4,0.41936]
[1756073230570,3.2078,4769.8,4769.5,0.41936]
[1756073230766,0.1,4770.2,4769.6,0.41935]
[1756073230971,0.1,4770.2,4769.7,21.25234]
[1756073231176,0.4253,4770.1,4769.9,0.41932]
[1756073231375,0.4253,4770.1,4769.7,21.25234]